[Event "*** MasterClass Titled Tuesday Blitz"]
[Site "Chess.com"]
[Date "2017.09.05"]
[Round "5"]
[White "Makalexa"]
[Black "novocane"]
[Result "1/2-1/2"]
[WhiteElo "2152"]
[BlackElo "2163"]
[TimeControl "180+2"]
[EndTime "14:14:39 PDT"]
[Termination "Game drawn by repetition"]

1. e4 {[%clk 0:03:01.9]} 1... c5 {[%clk 0:03:00.5]} 2. Nf3 {[%clk 0:03:01.8]}
2... Nc6 {[%clk 0:03:01.2]} 3. Nc3 {[%clk 0:03:02]} 3... e5 {[%clk 0:03:01.7]}
4. Bc4 {[%clk 0:03:01.8]} 4... Be7 {[%clk 0:03:00.1]} 5. d3 {[%clk 0:03:00.2]}
5... d6 {[%clk 0:02:55.7]} 6. Ne2 {[%clk 0:03:00.6]} 6... Nf6 {[%clk 0:02:47.6]}
7. Ng3 {[%clk 0:02:58.2]} 7... O-O {[%clk 0:02:40.6]} 8. O-O {[%clk 0:02:42.1]}
8... d5 {[%clk 0:02:39]} 9. exd5 {[%clk 0:02:38.9]} 9... Nxd5 {[%clk 0:02:39.5]}
10. Re1 {[%clk 0:02:33.4]} 10... Bf6 {[%clk 0:02:16.7]} 11. Ne4 {[%clk
0:02:30.8]} 11... Bg4 {[%clk 0:01:53.6]} 12. Bxd5 {[%clk 0:02:29.2]} 12... Qxd5
{[%clk 0:01:52]} 13. h3 {[%clk 0:02:27.7]} 13... Bh5 {[%clk 0:01:37.6]} 14. Bh6
{[%clk 0:02:25.3]} 14... Nd4 {[%clk 0:00:40.7]} 15. g4 {[%clk 0:01:39]} 15...
Bg6 {[%clk 0:00:26.9]} 16. Nxf6+ {[%clk 0:01:33.4]} 16... gxf6 {[%clk
0:00:27.3]} 17. Nxd4 {[%clk 0:01:34.2]} 17... cxd4 {[%clk 0:00:21.6]} 18. Bxf8
{[%clk 0:01:30.8]} 18... Rxf8 {[%clk 0:00:22.5]} 19. f3 {[%clk 0:01:30.5]} 19...
f5 {[%clk 0:00:23.7]} 20. Qe2 {[%clk 0:01:29.1]} 20... f6 {[%clk 0:00:24.2]} 21.
Kh2 {[%clk 0:01:22.4]} 21... f4 {[%clk 0:00:23.6]} 22. h4 {[%clk 0:01:21.3]}
22... Be8 {[%clk 0:00:20]} 23. g5 {[%clk 0:01:19.1]} 23... Bc6 {[%clk
0:00:19.7]} 24. gxf6 {[%clk 0:01:17.4]} 24... Rxf6 {[%clk 0:00:20.3]} 25. Qxe5
{[%clk 0:00:40.7]} 25... Qxf3 {[%clk 0:00:20.3]} 26. Rg1+ {[%clk 0:00:42.1]}
26... Rg6 {[%clk 0:00:20.8]} 27. Qe6+ {[%clk 0:00:20.9]} 27... Kg7 {[%clk
0:00:21]} 28. Qe7+ {[%clk 0:00:18.5]} 28... Kg8 {[%clk 0:00:22]} 29. Qe6+ {[%clk
0:00:18.2]} 29... Kg7 {[%clk 0:00:23.1]} 30. Qe7+ {[%clk 0:00:13.9]} 30... Kg8
{[%clk 0:00:24.2]} 31. Qe6+ {[%clk 0:00:08.1]} 31... Kg7 {[%clk 0:00:25.4]} 32.
Qe7+ {[%clk 0:00:09]} 32... Kg8 {[%clk 0:00:25.8]} 1/2-1/2

[Event "*** MasterClass Titled Tuesday Blitz"]
[Site "Chess.com"]
[Date "2017.09.05"]
[Round "5"]
[White "chesstatour"]
[Black "nihalsarin"]
[Result "0-1"]
[WhiteElo "2072"]
[BlackElo "2640"]
[TimeControl "180+2"]
[EndTime "14:14:48 PDT"]
[Termination "nihalsarin won by resignation"]

1. c4 {[%clk 0:03:01.9]} 1... c6 {[%clk 0:02:59.1]} 2. e4 {[%clk 0:03:01.2]}
2... d5 {[%clk 0:02:55.4]} 3. exd5 {[%clk 0:03:01.9]} 3... cxd5 {[%clk
0:02:57.3]} 4. cxd5 {[%clk 0:03:02.5]} 4... Nf6 {[%clk 0:02:57.3]} 5. d4 {[%clk
0:03:01.7]} 5... Nxd5 {[%clk 0:02:57.9]} 6. Nc3 {[%clk 0:03:03.4]} 6... Nc6
{[%clk 0:02:58.5]} 7. Nf3 {[%clk 0:02:58.3]} 7... e6 {[%clk 0:02:54]} 8. Bb5
{[%clk 0:02:54.7]} 8... Be7 {[%clk 0:02:52.3]} 9. O-O {[%clk 0:02:54.8]} 9...
O-O {[%clk 0:02:52.6]} 10. Bxc6 {[%clk 0:02:46.7]} 10... bxc6 {[%clk 0:02:53.2]}
11. Na4 {[%clk 0:02:44]} 11... Rb8 {[%clk 0:02:40.6]} 12. b3 {[%clk 0:02:37.3]}
12... Ba6 {[%clk 0:02:39.3]} 13. Re1 {[%clk 0:02:13.7]} 13... Bb5 {[%clk
0:02:39.4]} 14. Nc5 {[%clk 0:01:28.5]} 14... a5 {[%clk 0:02:19.9]} 15. Ne5
{[%clk 0:01:05.4]} 15... Nc3 {[%clk 0:02:08.1]} 16. Qg4 {[%clk 0:00:18.4]} 16...
Ne2+ {[%clk 0:01:46.7]} 17. Rxe2 {[%clk 0:00:12.3]} 17... Bxe2 {[%clk 0:01:47]}
18. Qxe2 {[%clk 0:00:10]} 18... Qxd4 {[%clk 0:01:46.9]} 19. Bb2 {[%clk
0:00:08.9]} 19... Qxc5 {[%clk 0:01:47]} 20. Nd7 {[%clk 0:00:10.1]} 20... Qf5
{[%clk 0:01:43.8]} 21. Nxb8 {[%clk 0:00:10]} 21... Rxb8 {[%clk 0:01:44.2]} 22.
Rc1 {[%clk 0:00:09.5]} 22... c5 {[%clk 0:01:43.3]} 23. Qe5 {[%clk 0:00:08.5]}
23... Qxe5 {[%clk 0:01:43.1]} 24. Bxe5 {[%clk 0:00:10.4]} 24... Rb7 {[%clk
0:01:37.9]} 25. Bc3 {[%clk 0:00:03.8]} 25... Ra7 {[%clk 0:01:36.6]} 26. Kf1
{[%clk 0:00:05.1]} 26... f6 {[%clk 0:01:37.5]} 27. Ke2 {[%clk 0:00:06.2]} 27...
Kf7 {[%clk 0:01:38.8]} 28. Kd3 {[%clk 0:00:07.3]} 28... a4 {[%clk 0:01:40.2]}
29. Kc4 {[%clk 0:00:07.3]} 29... axb3 {[%clk 0:01:41.1]} 30. axb3 {[%clk
0:00:09.2]} 30... Ra2 {[%clk 0:01:42.1]} 31. Rf1 {[%clk 0:00:07.8]} 31... e5
{[%clk 0:01:39.4]} 32. g3 {[%clk 0:00:07.3]} 32... Ke6 {[%clk 0:01:40.2]} 33. h4
{[%clk 0:00:08]} 33... g6 {[%clk 0:01:38.1]} 34. f3 {[%clk 0:00:06.7]} 34... h5
{[%clk 0:01:38.1]} 35. Rg1 {[%clk 0:00:06.5]} 35... Rf2 {[%clk 0:01:34]} 36. g4
{[%clk 0:00:06.1]} 36... Rxf3 {[%clk 0:01:33.7]} 37. gxh5 {[%clk 0:00:06.1]}
37... gxh5 {[%clk 0:01:35.3]} 38. Rg7 {[%clk 0:00:03.9]} 38... Rf4+ {[%clk
0:01:35.7]} 39. Kb5 {[%clk 0:00:04.8]} 39... Rxh4 {[%clk 0:01:36.7]} 40. Rh7
{[%clk 0:00:04.5]} 40... Rh3 {[%clk 0:01:36.6]} 41. Kc4 {[%clk 0:00:04.6]} 41...
h4 {[%clk 0:01:38]} 42. Be1 {[%clk 0:00:04.3]} 42... f5 {[%clk 0:01:38.8]} 43.
Bf2 {[%clk 0:00:04.6]} 43... Rf3 {[%clk 0:01:37.1]} 44. Bxc5 {[%clk 0:00:05]}
44... Bxc5 {[%clk 0:01:34.3]} 45. Kxc5 {[%clk 0:00:06]} 45... Rxb3 {[%clk
0:01:33.2]} 46. Rh6+ {[%clk 0:00:06.9]} 46... Kf7 {[%clk 0:01:34.4]} 47. Rxh4
{[%clk 0:00:06.1]} 47... Rd3 {[%clk 0:01:35.2]} 48. Kc4 {[%clk 0:00:07]} 48...
Rd8 {[%clk 0:01:34]} 49. Rh6 {[%clk 0:00:06.3]} 49... f4 {[%clk 0:01:32.6]} 0-1

[Event "*** MasterClass Titled Tuesday Blitz"]
[Site "Chess.com"]
[Date "2017.09.05"]
[Round "5"]
[White "Fianchettoed-Tower"]
[Black "AdrianaNikolova"]
[Result "1-0"]
[WhiteElo "2366"]
[BlackElo "2251"]
[TimeControl "180+2"]
[EndTime "14:14:55 PDT"]
[Termination "Fianchettoed-Tower won on time"]

1. e4 {[%clk 0:03:01.2]} 1... c5 {[%clk 0:03:00.4]} 2. Nf3 {[%clk 0:03:01.4]}
2... Nc6 {[%clk 0:03:01]} 3. Bb5 {[%clk 0:03:01.5]} 3... d6 {[%clk 0:03:01.5]}
4. O-O {[%clk 0:03:02.3]} 4... Bd7 {[%clk 0:03:02.3]} 5. Re1 {[%clk 0:03:02.7]}
5... Nf6 {[%clk 0:03:02.7]} 6. c3 {[%clk 0:03:02.5]} 6... a6 {[%clk 0:03:03.3]}
7. Bf1 {[%clk 0:03:00.3]} 7... Bg4 {[%clk 0:03:03.3]} 8. h3 {[%clk 0:02:59.7]}
8... Bh5 {[%clk 0:03:03]} 9. a4 {[%clk 0:02:58.1]} 9... e6 {[%clk 0:03:00.6]}
10. Na3 {[%clk 0:02:57.7]} 10... Be7 {[%clk 0:03:01.1]} 11. d3 {[%clk
0:02:57.2]} 11... O-O {[%clk 0:03:01.6]} 12. Nc2 {[%clk 0:02:55.4]} 12... d5
{[%clk 0:02:58.1]} 13. exd5 {[%clk 0:02:53.4]} 13... Nxd5 {[%clk 0:02:55.3]} 14.
Ne3 {[%clk 0:02:50.9]} 14... Nf4 {[%clk 0:02:13.1]} 15. Ng4 {[%clk 0:02:44.8]}
15... Bd6 {[%clk 0:01:49.7]} 16. Qb3 {[%clk 0:02:39.2]} 16... Na5 {[%clk
0:01:41]} 17. Qc2 {[%clk 0:02:36.4]} 17... Bc7 {[%clk 0:01:42]} 18. Nge5 {[%clk
0:02:30.5]} 18... Ng6 {[%clk 0:01:28.1]} 19. Nxg6 {[%clk 0:02:28.7]} 19... Bxg6
{[%clk 0:01:16.1]} 20. Ne5 {[%clk 0:02:28.4]} 20... Bf5 {[%clk 0:00:55.5]} 21.
b4 {[%clk 0:01:52.6]} 21... cxb4 {[%clk 0:00:42.6]} 22. cxb4 {[%clk 0:01:54.5]}
22... Rc8 {[%clk 0:00:43.8]} 23. Qa2 {[%clk 0:01:44.5]} 23... Nc6 {[%clk
0:00:33.5]} 24. Nxc6 {[%clk 0:01:45.3]} 24... bxc6 {[%clk 0:00:35.4]} 25. Qc4
{[%clk 0:01:43.8]} 25... Qd6 {[%clk 0:00:27.4]} 26. g3 {[%clk 0:01:42.8]} 26...
Rfd8 {[%clk 0:00:23.4]} 27. Qxa6 {[%clk 0:01:32.4]} 27... Qxb4 {[%clk
0:00:10.5]} 28. Ba3 {[%clk 0:01:31.2]} 28... Qd4 {[%clk 0:00:06]} 29. Qc4 {[%clk
0:01:16.5]} 29... Bxd3 {[%clk 0:00:05.5]} 30. Qxd4 {[%clk 0:01:03.9]} 30... Rxd4
{[%clk 0:00:07.4]} 31. Red1 {[%clk 0:00:47.9]} 31... Rcd8 {[%clk 0:00:08.2]} 32.
Bc5 {[%clk 0:00:29.1]} 32... R4d5 {[%clk 0:00:06.3]} 33. Be7 {[%clk 0:00:29.4]}
33... R8d7 {[%clk 0:00:03.4]} 34. Bg2 {[%clk 0:00:30.7]} 1-0

[Event "*** MasterClass Titled Tuesday Blitz"]
[Site "Chess.com"]
[Date "2017.09.05"]
[Round "5"]
[White "michaelq2d5"]
[Black "Frolik67"]
[Result "1-0"]
[WhiteElo "2642"]
[BlackElo "2517"]
[TimeControl "180+2"]
[EndTime "14:15:03 PDT"]
[Termination "michaelq2d5 won by resignation"]

1. d4 {[%clk 0:03:02]} 1... d5 {[%clk 0:03:00]} 2. c4 {[%clk 0:03:01.5]} 2... c6
{[%clk 0:03:00.8]} 3. Nc3 {[%clk 0:03:01]} 3... Nf6 {[%clk 0:03:00.7]} 4. e3
{[%clk 0:03:02.3]} 4... e6 {[%clk 0:02:59]} 5. Nf3 {[%clk 0:03:03.2]} 5... Nbd7
{[%clk 0:02:59.9]} 6. Qc2 {[%clk 0:03:04.4]} 6... Bd6 {[%clk 0:02:59.3]} 7. g4
{[%clk 0:03:05.5]} 7... h6 {[%clk 0:02:56.6]} 8. Rg1 {[%clk 0:03:06.2]} 8...
dxc4 {[%clk 0:02:54.2]} 9. Bxc4 {[%clk 0:03:06.5]} 9... b5 {[%clk 0:02:54.9]}
10. Be2 {[%clk 0:02:50.2]} 10... Bb7 {[%clk 0:02:55.2]} 11. g5 {[%clk
0:02:41.1]} 11... hxg5 {[%clk 0:02:56]} 12. Rxg5 {[%clk 0:02:43.1]} 12... b4
{[%clk 0:02:56.9]} 13. Na4 {[%clk 0:02:33.4]} 13... g6 {[%clk 0:02:49.4]} 14. e4
{[%clk 0:02:01]} 14... Be7 {[%clk 0:02:29.3]} 15. e5 {[%clk 0:01:25.5]} 15...
Ng8 {[%clk 0:02:27.2]} 16. Rg3 {[%clk 0:01:04.2]} 16... Rc8 {[%clk 0:02:13.2]}
17. Ng5 {[%clk 0:00:50]} 17... Rxh2 {[%clk 0:01:52.4]} 18. Nxf7 {[%clk
0:00:35.8]} 18... Rh1+ {[%clk 0:01:48.9]} 19. Kd2 {[%clk 0:00:33.9]} 19... Qa5
{[%clk 0:01:43]} 20. Qxg6 {[%clk 0:00:29.4]} 20... Nf8 {[%clk 0:01:24.9]} 21.
Nd6+ {[%clk 0:00:29.5]} 21... Kd7 {[%clk 0:01:25.7]} 22. Qxg8 {[%clk 0:00:17.7]}
22... Bxd6 {[%clk 0:01:11.2]} 23. exd6 {[%clk 0:00:17.7]} 23... Qxa4 {[%clk
0:01:05]} 24. b3 {[%clk 0:00:17.6]} 24... Qa5 {[%clk 0:00:57.9]} 25. Qg7+ {[%clk
0:00:18.4]} 25... Kxd6 {[%clk 0:00:57.3]} 26. Qxb7 {[%clk 0:00:19.3]} 26... Rc7
{[%clk 0:00:54.9]} 27. Qb8 {[%clk 0:00:20]} 27... Nd7 {[%clk 0:00:54.8]} 28. Qg8
{[%clk 0:00:17.7]} 28... Qf5 {[%clk 0:00:48.8]} 29. Qg5 {[%clk 0:00:12.8]} 29...
Qxf2 {[%clk 0:00:48.3]} 30. Qe3 {[%clk 0:00:13.7]} 30... Qe1+ {[%clk 0:00:46.8]}
31. Kc2 {[%clk 0:00:14.4]} 31... c5 {[%clk 0:00:45.9]} 32. d5 {[%clk 0:00:14.8]}
32... Qc3+ {[%clk 0:00:25.7]} 33. Qxc3 {[%clk 0:00:15.5]} 33... bxc3 {[%clk
0:00:27.7]} 34. Bf4+ {[%clk 0:00:16.8]} 34... e5 {[%clk 0:00:28.6]} 35. Rxh1
{[%clk 0:00:17.8]} 35... exf4 {[%clk 0:00:30.2]} 36. Rg6+ {[%clk 0:00:18.8]}
36... Kxd5 {[%clk 0:00:31.1]} 37. Rh5+ {[%clk 0:00:18.8]} 37... Ke4 {[%clk
0:00:30.8]} 38. Bd3+ {[%clk 0:00:19.3]} 38... Kf3 {[%clk 0:00:31.8]} 39. Rh3+
{[%clk 0:00:18.9]} 39... Kf2 {[%clk 0:00:33]} 40. Re6 {[%clk 0:00:18.2]} 40...
f3 {[%clk 0:00:31.4]} 41. Be4 {[%clk 0:00:17.2]} 41... c4 {[%clk 0:00:32.2]} 42.
Rxf3+ {[%clk 0:00:18]} 42... Kg2 {[%clk 0:00:30.9]} 43. Rxc3+ {[%clk 0:00:18.6]}
43... Kf2 {[%clk 0:00:31]} 44. Rxc4 {[%clk 0:00:19.9]} 44... Nc5 {[%clk
0:00:31]} 45. Re5 {[%clk 0:00:20.5]} 1-0

[Event "*** MasterClass Titled Tuesday Blitz"]
[Site "Chess.com"]
[Date "2017.09.05"]
[Round "5"]
[White "andreimacovei2000"]
[Black "NTBT_DHS"]
[Result "1-0"]
[WhiteElo "2419"]
[BlackElo "2527"]
[TimeControl "180+2"]
[EndTime "14:15:06 PDT"]
[Termination "andreimacovei2000 won by checkmate"]

1. d4 {[%clk 0:03:01.9]} 1... g6 {[%clk 0:02:59.5]} 2. h4 {[%clk 0:03:00.7]}
2... Nf6 {[%clk 0:02:59.6]} 3. h5 {[%clk 0:03:00.3]} 3... Nxh5 {[%clk
0:03:00.1]} 4. Rxh5 {[%clk 0:03:01.4]} 4... gxh5 {[%clk 0:03:02]} 5. e4 {[%clk
0:03:02.4]} 5... d5 {[%clk 0:02:59]} 6. Qxh5 {[%clk 0:02:59.4]} 6... dxe4 {[%clk
0:02:56.3]} 7. Nc3 {[%clk 0:02:58.3]} 7... c6 {[%clk 0:02:32.6]} 8. Bc4 {[%clk
0:02:55.7]} 8... e6 {[%clk 0:02:31.7]} 9. Nge2 {[%clk 0:02:54.1]} 9... b5 {[%clk
0:02:19.5]} 10. Bg5 {[%clk 0:02:49.3]} 10... Be7 {[%clk 0:02:19.3]} 11. Bxe7
{[%clk 0:02:47.1]} 11... Qxe7 {[%clk 0:02:20.6]} 12. Bb3 {[%clk 0:02:49]} 12...
Nd7 {[%clk 0:02:19.4]} 13. Nxe4 {[%clk 0:02:47.3]} 13... Nf6 {[%clk 0:02:20]}
14. Qe5 {[%clk 0:02:45.7]} 14... Nxe4 {[%clk 0:02:15.9]} 15. Qxh8+ {[%clk
0:02:44.9]} 15... Kd7 {[%clk 0:02:17.4]} 16. Qxh7 {[%clk 0:02:45.1]} 16... Nf6
{[%clk 0:02:08.3]} 17. Qh4 {[%clk 0:02:46]} 17... a5 {[%clk 0:02:08.8]} 18. a4
{[%clk 0:02:44.1]} 18... Bb7 {[%clk 0:02:09.2]} 19. axb5 {[%clk 0:02:42.9]}
19... cxb5 {[%clk 0:02:11.1]} 20. Nc3 {[%clk 0:02:43.2]} 20... a4 {[%clk
0:02:07.9]} 21. Ba2 {[%clk 0:02:40.9]} 21... b4 {[%clk 0:02:02.6]} 22. Ne2
{[%clk 0:02:36.4]} 22... b3 {[%clk 0:01:49.8]} 23. Bb1 {[%clk 0:02:34.7]} 23...
bxc2 {[%clk 0:01:40.3]} 24. Bxc2 {[%clk 0:02:36.7]} 24... Qb4+ {[%clk
0:01:40.6]} 25. Kf1 {[%clk 0:02:29]} 25... Qxb2 {[%clk 0:01:40]} 26. Rc1 {[%clk
0:02:26.1]} 26... Ba6 {[%clk 0:01:06.1]} 27. Bxa4+ {[%clk 0:02:21.3]} 27... Ke7
{[%clk 0:01:05.4]} 28. Rc7+ {[%clk 0:02:19.8]} 28... Kf8 {[%clk 0:00:41.4]} 29.
Kg1 {[%clk 0:02:19.4]} 29... Qb1+ {[%clk 0:00:38.6]} 30. Rc1 {[%clk 0:02:07.5]}
30... Qg6 {[%clk 0:00:35.9]} 31. Nf4 {[%clk 0:02:05.1]} 31... Qg7 {[%clk
0:00:33.6]} 32. Rc7 {[%clk 0:02:02.2]} 32... Bc8 {[%clk 0:00:28.3]} 33. Nh5
{[%clk 0:01:49.3]} 33... Qg4 {[%clk 0:00:21.2]} 34. Qxf6 {[%clk 0:01:43.5]}
34... Qxh5 {[%clk 0:00:19.5]} 35. Qd8+ {[%clk 0:01:38.3]} 35... Kg7 {[%clk
0:00:20.1]} 36. Rc3 {[%clk 0:01:12.5]} 36... Bb7 {[%clk 0:00:11.5]} 37. Rg3+
{[%clk 0:01:07.4]} 37... Kh7 {[%clk 0:00:12.4]} 38. Bc2+ {[%clk 0:01:05.9]}
38... f5 {[%clk 0:00:09.8]} 39. Qc7+ {[%clk 0:01:01]} 39... Kh6 {[%clk
0:00:10.1]} 40. Qf4+ {[%clk 0:00:53.1]} 40... Kh7 {[%clk 0:00:10.2]} 41. Qc7+
{[%clk 0:00:53.6]} 41... Kh6 {[%clk 0:00:11.3]} 42. Qg7# {[%clk 0:00:50.8]} 1-0

[Event "*** MasterClass Titled Tuesday Blitz"]
[Site "Chess.com"]
[Date "2017.09.05"]
[Round "5"]
[White "ditkin25"]
[Black "HKBurwell"]
[Result "1-0"]
[WhiteElo "2225"]
[BlackElo "2351"]
[TimeControl "180+2"]
[EndTime "14:15:18 PDT"]
[Termination "ditkin25 won by checkmate"]

1. e4 {[%clk 0:03:01.9]} 1... e5 {[%clk 0:03:00.8]} 2. Nf3 {[%clk 0:03:02.9]}
2... Nf6 {[%clk 0:03:01.8]} 3. d4 {[%clk 0:03:01.1]} 3... Nxe4 {[%clk
0:03:02.3]} 4. Bd3 {[%clk 0:03:02.7]} 4... d5 {[%clk 0:03:03.2]} 5. Nxe5 {[%clk
0:03:04.2]} 5... Nd7 {[%clk 0:03:03.8]} 6. Nc3 {[%clk 0:03:05.4]} 6... Nxe5
{[%clk 0:03:01.2]} 7. dxe5 {[%clk 0:03:06.1]} 7... Nxc3 {[%clk 0:02:55.6]} 8.
bxc3 {[%clk 0:03:08]} 8... Qh4 {[%clk 0:02:42.3]} 9. O-O {[%clk 0:02:29]} 9...
c6 {[%clk 0:02:27.8]} 10. Rb1 {[%clk 0:02:23.2]} 10... Bc5 {[%clk 0:02:23.8]}
11. Qf3 {[%clk 0:02:03.5]} 11... O-O {[%clk 0:02:20.6]} 12. Be3 {[%clk
0:01:34.8]} 12... Be7 {[%clk 0:02:05.4]} 13. Qe2 {[%clk 0:01:20.1]} 13... f6
{[%clk 0:01:49.2]} 14. Bd4 {[%clk 0:00:44.9]} 14... c5 {[%clk 0:01:25.5]} 15.
exf6 {[%clk 0:00:40.6]} 15... Bxf6 {[%clk 0:01:18.8]} 16. Bxc5 {[%clk
0:00:41.4]} 16... Rd8 {[%clk 0:01:20]} 17. c4 {[%clk 0:00:29.9]} 17... b6 {[%clk
0:01:18]} 18. Ba3 {[%clk 0:00:21.8]} 18... d4 {[%clk 0:01:17.4]} 19. Be4 {[%clk
0:00:21.2]} 19... Rb8 {[%clk 0:01:08.6]} 20. Bd5+ {[%clk 0:00:22.6]} 20... Kh8
{[%clk 0:01:08.3]} 21. Bd6 {[%clk 0:00:24.1]} 21... Bg4 {[%clk 0:01:06.6]} 22.
f3 {[%clk 0:00:18.6]} 22... Bxf3 {[%clk 0:00:57.2]} 23. Rxf3 {[%clk 0:00:19.4]}
23... Rxd6 {[%clk 0:00:57.6]} 24. Re1 {[%clk 0:00:20.7]} 24... h6 {[%clk
0:00:54.2]} 25. Rh3 {[%clk 0:00:21.4]} 25... Qf4 {[%clk 0:00:47.1]} 26. Rf1
{[%clk 0:00:19.1]} 26... Qg5 {[%clk 0:00:44]} 27. Rg3 {[%clk 0:00:19.4]} 27...
Qh4 {[%clk 0:00:42.3]} 28. Rg4 {[%clk 0:00:18.2]} 28... Qh5 {[%clk 0:00:40.5]}
29. Qe4 {[%clk 0:00:18.5]} 29... Re8 {[%clk 0:00:40.3]} 30. Qf3 {[%clk
0:00:16.9]} 30... Qe5 {[%clk 0:00:36.2]} 31. h3 {[%clk 0:00:16.9]} 31... b5
{[%clk 0:00:32.9]} 32. Re4 {[%clk 0:00:15.9]} 32... Qxe4 {[%clk 0:00:22.1]} 33.
Bxe4 {[%clk 0:00:17.8]} 33... bxc4 {[%clk 0:00:23.2]} 34. Qf5 {[%clk 0:00:18.8]}
34... Kg8 {[%clk 0:00:24.6]} 35. Bd5+ {[%clk 0:00:18.5]} 35... Kh8 {[%clk
0:00:25.5]} 36. Qg6 {[%clk 0:00:16]} 36... Rc8 {[%clk 0:00:22.4]} 37. Be4 {[%clk
0:00:17]} 37... Kg8 {[%clk 0:00:23]} 38. Qh7+ {[%clk 0:00:18]} 38... Kf7 {[%clk
0:00:22.6]} 39. Bg6+ {[%clk 0:00:17.9]} 39... Ke7 {[%clk 0:00:24.1]} 40. Re1+
{[%clk 0:00:19.2]} 40... Kd8 {[%clk 0:00:25.3]} 41. Qg8+ {[%clk 0:00:18.8]}
41... Kc7 {[%clk 0:00:24.1]} 42. Qxc4+ {[%clk 0:00:20.2]} 42... Rc6 {[%clk
0:00:25]} 43. Qf7+ {[%clk 0:00:19.5]} 43... Kb6 {[%clk 0:00:23.8]} 44. Rb1+
{[%clk 0:00:19.3]} 44... Kc5 {[%clk 0:00:25.3]} 45. Be4 {[%clk 0:00:17]} 45...
R6c7 {[%clk 0:00:25.7]} 46. Qd5# {[%clk 0:00:17.8]} 1-0

[Event "*** MasterClass Titled Tuesday Blitz"]
[Site "Chess.com"]
[Date "2017.09.05"]
[Round "5"]
[White "TenisMaster"]
[Black "swayamsm"]
[Result "0-1"]
[WhiteElo "2742"]
[BlackElo "2523"]
[TimeControl "180+2"]
[EndTime "14:15:21 PDT"]
[Termination "swayamsm won on time"]

1. d4 {[%clk 0:03:00.7]} 1... Nf6 {[%clk 0:02:59.6]} 2. Bf4 {[%clk 0:03:01]}
2... c5 {[%clk 0:02:37.9]} 3. e3 {[%clk 0:02:43.1]} 3... Qb6 {[%clk 0:02:29.9]}
4. b3 {[%clk 0:02:40.4]} 4... cxd4 {[%clk 0:02:23.4]} 5. exd4 {[%clk 0:02:40.8]}
5... e6 {[%clk 0:02:24.7]} 6. Nf3 {[%clk 0:02:40.5]} 6... Nc6 {[%clk 0:02:16]}
7. Be2 {[%clk 0:02:40.1]} 7... Nd5 {[%clk 0:02:12.7]} 8. Qd2 {[%clk 0:01:45.4]}
8... Nxf4 {[%clk 0:01:48.8]} 9. Qxf4 {[%clk 0:01:46.3]} 9... Be7 {[%clk
0:01:43.7]} 10. O-O {[%clk 0:01:46.2]} 10... O-O {[%clk 0:01:45.2]} 11. c3
{[%clk 0:01:44.5]} 11... d6 {[%clk 0:01:34.7]} 12. Nbd2 {[%clk 0:01:29.6]} 12...
Qc7 {[%clk 0:01:35.3]} 13. Rfe1 {[%clk 0:01:28.5]} 13... e5 {[%clk 0:01:17.3]}
14. Qe3 {[%clk 0:01:28.4]} 14... Bf6 {[%clk 0:01:11.2]} 15. d5 {[%clk
0:01:23.7]} 15... Ne7 {[%clk 0:01:11.3]} 16. Ne4 {[%clk 0:01:24.1]} 16... Nxd5
{[%clk 0:01:07.7]} 17. Qd2 {[%clk 0:01:18.4]} 17... Be6 {[%clk 0:01:04.3]} 18.
c4 {[%clk 0:01:03.1]} 18... Nf4 {[%clk 0:01:00.5]} 19. Nxf6+ {[%clk 0:00:49.8]}
19... gxf6 {[%clk 0:01:02.4]} 20. Bf1 {[%clk 0:00:50.7]} 20... Kh8 {[%clk
0:00:53.9]} 21. Re4 {[%clk 0:00:45.4]} 21... Rg8 {[%clk 0:00:43]} 22. Rxf4
{[%clk 0:00:45.2]} 22... exf4 {[%clk 0:00:44.9]} 23. Qxf4 {[%clk 0:00:46.2]}
23... Qe7 {[%clk 0:00:44.5]} 24. Rd1 {[%clk 0:00:46.2]} 24... Rad8 {[%clk
0:00:43.6]} 25. Qe3 {[%clk 0:00:23.6]} 25... Qf8 {[%clk 0:00:37.4]} 26. g3
{[%clk 0:00:21.6]} 26... Bg4 {[%clk 0:00:34.5]} 27. Bg2 {[%clk 0:00:22.2]} 27...
Qg7 {[%clk 0:00:33.7]} 28. Qxa7 {[%clk 0:00:21.8]} 28... Ra8 {[%clk 0:00:30.3]}
29. Qxb7 {[%clk 0:00:22.7]} 29... Rxa2 {[%clk 0:00:31.8]} 30. Qd5 {[%clk
0:00:23]} 30... Rd8 {[%clk 0:00:29.6]} 31. b4 {[%clk 0:00:23.8]} 31... Be6
{[%clk 0:00:28.7]} 32. Qd4 {[%clk 0:00:22.3]} 32... f5 {[%clk 0:00:24.1]} 33.
Qf4 {[%clk 0:00:21.9]} 33... Rc8 {[%clk 0:00:17.1]} 34. Qxd6 {[%clk 0:00:20.1]}
34... Qb2 {[%clk 0:00:14.2]} 35. Qe5+ {[%clk 0:00:13.9]} 35... Qxe5 {[%clk
0:00:15.7]} 36. Nxe5 {[%clk 0:00:14.6]} 36... Bxc4 {[%clk 0:00:17.1]} 37. Rc1
{[%clk 0:00:12.3]} 37... Be6 {[%clk 0:00:17.4]} 38. Rxc8+ {[%clk 0:00:05.8]}
38... Bxc8 {[%clk 0:00:19.3]} 0-1